fUSD/lending_fUSD_20251230
["ID","MTS","AMOUNT","RATE_DAILY","PERIOD"]
[400106132,1767122856503,-1061.74052916,0.00042929,120]
[400106133,1767122856532,-685.75683893,0.00042929,120]
[400106134,1767122856560,-180.36269066,0.00042929,120]
[400106135,1767122856589,-2215.17749535,0.00042929,120]
[400106136,1767122856619,-664.71839957,0.00042929,120]
[400106137,1767122856659,-550.07602365,0.00042929,120]
[400106138,1767122856687,-1063.23834925,0.00042929,120]
[400106139,1767122856714,-767.58331971,0.00042929,120]
[400106140,1767122856741,-1121.77253931,0.00042929,120]
[400106141,1767122856768,-204.6117004,0.00042929,30]
[400106142,1767122856796,-789.15740019,0.00042929,120]
[400106143,1767122856824,-507.41115385,0.00042929,120]
[400106144,1767122856852,-2195.94289035,0.00042929,56]
[400106145,1767122856881,-854.71003714,0.00042929,120]
[400106146,1767122856909,-1563.89525038,0.00042929,30]
[400106147,1767122856937,-196.47842099,0.00042929,120]
[400106148,1767122856965,-1155.14371833,0.00042929,120]
[400106149,1767122856994,-411.49600329,0.00042929,120]
[400106150,1767122857022,-1720.06291121,0.00042929,30]
[400106151,1767122857051,-192.46578069,0.00042929,120]
[400106152,1767122857078,-524.86375072,0.00042929,120]
[400106153,1767122857107,-1551.8336397,0.00042929,30]
[400106154,1767122857136,-274.13024299,0.00042929,120]
[400106155,1767122857165,-1929.18619694,0.00042929,120]
[400106156,1767122857193,-864.10705579,0.00042929,120]
[400106157,1767122857222,-332.28115297,0.00042929,120]
[400106158,1767122857251,-1018.14488486,0.00042929,120]
[400106159,1767122857278,-1218.01402051,0.00042929,30]
[400106160,1767122857308,-227.99350166,0.00042929,120]
[400106161,1767122857338,-2296.803957,0.00042929,120]
[400106162,1767122857368,-1132.51133801,0.00042929,120]
[400106163,1767122857395,-1869.54567035,0.00042929,30]
[400106164,1767122857425,-1310.90762132,0.00042929,30]
[400106165,1767122857453,-1036.07043172,0.00042929,30]
[400106166,1767122857480,-2574.86656977,0.00042929,30]
[400106167,1767122857506,-3228.75244546,0.00042929,120]
[400106168,1767122857533,-251.90688288,0.00042929,30]
[400106169,1767122857561,-470.92336887,0.00042929,30]
[400106170,1767122857590,-325.61408,0.00042929,60]
[400106171,1767122857617,-330.17613,0.00042929,60]
[400106172,1767122857645,-325.61408,0.00042929,60]
[400106173,1767122857674,-330.17613,0.00042929,60]
[400106174,1767122857703,-325.61408,0.00042929,60]
[400106175,1767122857731,-325.61408,0.00042929,60]
[400106176,1767122857757,-325.61408,0.00042929,60]
[400106177,1767122857784,-198.10567,0.00042929,60]
[400106178,1767122857811,-198.10567,0.00042929,60]
[400106179,1767122857837,-198.10567,0.00042929,60]
[400106180,1767122857865,-198.10567,0.00042929,60]
[400106181,1767122857891,-198.10567,0.00042929,60]
[400106182,1767122857920,-638.77698947,0.00042929,30]
[400106183,1767122857948,-2750.781731,0.00042929,30]
[400106184,1767122857975,-160.0,0.00042929,30]
[400106185,1767122858002,-212.2,0.00042929,30]
[400106186,1767122858030,-160.0,0.00042929,30]
[400106187,1767122858059,-160.0,0.00042929,30]
[400106188,1767122858087,-31434.52871771,0.00042929,60]
[400106189,1767122858114,-522.0,0.00042929,120]
[400106190,1767122858142,-307.8,0.00042929,30]
[400106191,1767122858176,-223.11,0.00042929,30]
[400106192,1767122858203,-221.0,0.00042929,120]
[400106193,1767122858230,-2000.0,0.00042929,31]
[400106194,1767122858257,-21000.0,0.00042929,120]
[400106195,1767122858285,-1028.63675521,0.00042929,30]
[400106196,1767122858312,-10830.67310328,0.00042929,120]
[400106197,1767122858341,-1800.0,0.00042929,120]
[400106198,1767122858370,-717.699,0.00042929,120]
[400106199,1767122858399,-156.53113876,0.00042929,120]
[400106200,1767122858428,-8265.88578416,0.00042929,120]
[400106201,1767122858456,-3000.0,0.00042929,30]
[400106202,1767122858630,-10000.0,0.00042929,120]
[400106203,1767122858660,-5639.80674286,0.00042929,60]
[400106204,1767122858689,-2000000.0,0.00042929,90]
[400106205,1767122858717,-2000.0,0.00042929,120]
[400106206,1767122858761,-625.23902469,0.00042929,120]
[400106207,1767122858796,-210.78772822,0.00042929,120]
[400106208,1767122858826,-1000.0,0.00042929,120]
[400106209,1767122858862,-1000.0,0.00042929,120]
[400106210,1767122858896,-1000.0,0.00042929,120]
[400106211,1767122858928,-1000.0,0.00042929,120]
[400106212,1767122858958,-1000.0,0.00042929,120]
[400106213,1767122858988,-1000.0,0.00042929,120]
[400106214,1767122859019,-1000.0,0.00042929,120]
[400106215,1767122859050,-1000.0,0.00042929,120]
[400106216,1767122859081,-1000.0,0.00042929,120]
[400106217,1767122859112,-1000.0,0.00042929,120]
[400106218,1767122859145,-1000.0,0.00042929,120]
[400106219,1767122859177,-1000.0,0.00042929,120]
[400106220,1767122859207,-1000.0,0.00042929,120]
[400106221,1767122859238,-1000.0,0.00042929,120]
[400106222,1767122859271,-1000.0,0.00042929,120]
[400106223,1767122859303,-285.05640015,0.00042929,120]
[400106224,1767122859333,-31780.91867621,0.00042929,120]
[400106225,1767122859363,-1000.0,0.00042929,120]
[400106226,1767122859395,-1000.0,0.00042929,120]
[400106227,1767122859425,-1090.0,0.00042929,120]
[400106228,1767122859454,-183.34061654,0.00042929,120]
[400106229,1767122859483,-1500.0,0.00042929,120]
[400106230,1767122859513,-663472.17264819,0.00042929,30]
[400106231,1767122859543,-1099.0,0.00042929,30]
[400106232,1767122859572,-1099.0,0.00042929,30]
[400106233,1767122859601,-1099.0,0.00042929,30]
[400106234,1767122859630,-1099.0,0.00042929,30]
[400106235,1767122859658,-1099.0,0.00042929,30]
[400106236,1767122859686,-1099.0,0.00042929,30]
[400106237,1767122859715,-1099.0,0.00042929,30]
[400106238,1767122859742,-1099.0,0.00042929,30]
[400106239,1767122859771,-1099.0,0.00042929,30]
[400106240,1767122859798,-1103.06044052,0.00042929,30]
[400106241,1767122859827,-3282.48843353,0.00042929,120]
[400106242,1767122859857,-1000.0,0.00042929,120]
[400106243,1767122859884,-1000.0,0.00042929,120]
[400106244,1767122859912,-536.6723623,0.00042929,120]
[400106245,1767122859941,-500.0,0.00042929,120]
[400106246,1767122892204,-211.32,0.00027397,30]
[400106247,1767122892235,-155.85,0.00029848,30]
[400106248,1767122892264,-626.20462017,0.0003,30]
[400106249,1767122892293,-3000.0,0.00030274,50]
[400106250,1767122892322,-227.74,0.000317,30]
[400106251,1767122892351,-211.32,0.00031723,30]
[400106252,1767122892380,-155.85,0.00032464,30]
[400106253,1767122892408,-320.11942281,0.0003488,120]
[400106254,1767122892436,-206.0,0.0003488,30]
[400106255,1767122892465,-371.99148618,0.00035,30]
[400106256,1767122892494,-300.0,0.00035,30]
[400106257,1767122892523,-325.0,0.00035,30]
[400106258,1767122892552,-155.85,0.00035081,60]
[400106259,1767122892583,-174.605382,0.000351,120]
[400106260,1767122892611,-172.02491,0.00035888,30]
[400106261,1767122892637,-1195.61,0.00036,30]
[400106262,1767122892664,-211.32,0.00036049,30]
[400106263,1767122892691,-172.02491,0.00036088,30]
[400106264,1767122892719,-172.02491,0.00036288,30]
[400106265,1767122892745,-172.02491,0.00036488,30]
[400106266,1767122892772,-172.02491,0.00036688,30]
[400106267,1767122892798,-1195.61,0.0003672,30]
[400106268,1767122892825,-172.02491,0.00036888,30]
[400106269,1767122892853,-206.0,0.0003689,30]
[400106270,1767122892884,-5000.0,0.00036929,120]
[400106271,1767122892913,-192.24745474,0.00036975,60]
[400106272,1767122892944,-150.0,0.00037,120]
[400106273,1767122892972,-200.0,0.00037,30]
[400106274,1767122893001,-172.02491,0.00037088,30]
[400106275,1767122893030,-172.02491,0.00037288,30]
[400106276,1767122893060,-1195.61,0.0003744,30]
[400106277,1767122893089,-172.02491,0.00037488,30]
[400106278,1767122893117,-222.30051954,0.00037594,60]
[400106279,1767122893146,-222.30051953,0.00037594,60]
[400106280,1767122893175,-172.02491,0.00037688,30]
[400106281,1767122893207,-155.85,0.00037697,60]
[400106282,1767122893233,-172.02491,0.00037888,30]
[400106283,1767122893260,-618.78966295,0.00038,120]
[400106284,1767122893288,-150.0,0.00038,120]
[400106285,1767122893319,-172.02491,0.00038088,30]
[400106286,1767122893348,-172.02491,0.00038288,30]
[400106287,1767122893375,-253.7881162,0.000383,30]
[400106288,1767122893404,-690.0,0.00038356,41]
[400106289,1767122893431,-571.8,0.00038356,41]
[400106290,1767122893460,-685.5,0.00038356,40]
[400106291,1767122893489,-567.0,0.00038356,39]
[400106292,1767122893517,-576.3,0.00038356,46]
[400106293,1767122893547,-501.3,0.00038356,36]
[400106294,1767122893577,-739.2,0.00038356,37]
[400106295,1767122893606,-478.8,0.00038356,45]
[400106296,1767122893636,-524.44682833,0.00038356,48]
[400106297,1767122893665,-484.8,0.00038356,43]
[400106298,1767122893692,-637.92936567,0.00038356,49]
[400106299,1767122893721,-180.646136,0.00038356,120]
[400106300,1767122893750,-151.0,0.00038356,120]
[400106301,1767122893778,-151.0,0.00038356,120]
[400106302,1767122893807,-151.0,0.00038356,120]
[400106303,1767122893836,-151.0,0.00038356,120]
[400106304,1767122893866,-151.0,0.00038356,120]
[400106305,1767122893893,-151.0,0.00038356,120]
[400106306,1767122893923,-151.0,0.00038356,120]
[400106307,1767122893951,-151.0,0.00038356,120]
[400106308,1767122893980,-151.0,0.00038356,120]
[400106309,1767122894010,-245.63853,0.00038356,120]
[400106310,1767122894036,-151.0,0.00038356,120]
[400106311,1767122894062,-151.0,0.00038356,120]
[400106312,1767122894089,-151.0,0.00038356,120]
[400106313,1767122894115,-151.0,0.00038356,120]
[400106314,1767122894142,-151.0,0.00038356,120]
[400106315,1767122894169,-151.0,0.00038356,120]
[400106316,1767122894197,-151.0,0.00038356,120]
[400106317,1767122894224,-151.0,0.00038356,120]
[400106318,1767122894252,-151.0,0.00038356,120]
[400106319,1767122894279,-151.0,0.00038356,120]
[400106320,1767122894307,-301.671675,0.00038356,120]
[400106321,1767122894335,-803.22294,0.00038356,120]
[400106322,1767122894361,-803.22294,0.00038356,120]
[400106323,1767122894538,-803.22294,0.00038356,120]
[400106324,1767122894569,-803.22294,0.00038356,120]
[400106325,1767122894598,-803.22294,0.00038356,120]
[400106326,1767122894626,-803.22294,0.00038356,120]
[400106327,1767122894654,-803.22294,0.00038356,120]
[400106328,1767122894681,-803.22294,0.00038356,120]
[400106329,1767122894708,-803.22294,0.00038356,120]
[400106330,1767122894736,-803.22294,0.00038356,120]
[400106331,1767122894763,-803.22294,0.00038356,120]
[400106332,1767122894789,-803.22294,0.00038356,120]
[400106333,1767122894817,-318.577807,0.00038356,120]
[400106334,1767122894846,-803.22294,0.00038356,120]
[400106335,1767122894873,-318.577807,0.00038356,120]
[400106336,1767122894901,-803.22294,0.00038356,120]
[400106337,1767122894931,-318.577807,0.00038356,120]
[400106338,1767122894960,-803.22294,0.00038356,120]
[400106339,1767122894988,-318.577807,0.00038356,120]
[400106340,1767122895016,-318.577807,0.00038356,120]
[400106341,1767122895043,-803.22294,0.00038356,120]
[400106342,1767122895070,-318.577807,0.00038356,120]
[400106343,1767122895097,-803.22294,0.00038356,120]
[400106344,1767122895124,-318.577807,0.00038356,120]
[400106345,1767122895151,-803.22294,0.00038356,120]
[400106346,1767122895177,-318.577807,0.00038356,120]
[400106347,1767122895204,-803.22294,0.00038356,120]
[400106348,1767122895231,-318.577807,0.00038356,120]
[400106349,1767122895258,-803.22295,0.00038356,120]
[400106350,1767122895286,-318.577807,0.00038356,120]
[400106351,1767122895315,-318.577807,0.00038356,120]
[400106352,1767122895343,-318.577807,0.00038356,120]
[400106353,1767122895371,-318.577807,0.00038356,120]
[400106354,1767122895398,-318.577807,0.00038356,120]
[400106355,1767122895426,-318.577807,0.00038356,120]
[400106356,1767122895454,-318.577807,0.00038356,120]
[400106357,1767122895482,-318.577807,0.00038356,120]
[400106358,1767122895509,-318.577807,0.00038356,120]
[400106359,1767122895538,-318.577807,0.00038356,120]
[400106360,1767122895566,-318.577816,0.00038356,120]
[400106361,1767122895594,-714.757392,0.00038356,120]
[400106362,1767122895622,-714.757392,0.00038356,120]
[400106363,1767122895651,-714.757392,0.00038356,120]
[400106364,1767122895677,-714.757392,0.00038356,120]
[400106365,1767122895704,-714.757392,0.00038356,120]
[400106366,1767122895730,-714.757392,0.00038356,120]
[400106367,1767122895756,-714.757392,0.00038356,120]
[400106368,1767122895781,-714.757392,0.00038356,120]
[400106369,1767122895807,-714.757392,0.00038356,120]
[400106370,1767122895833,-714.757392,0.00038356,120]
[400106371,1767122895861,-714.757392,0.00038356,120]
[400106372,1767122895890,-714.757392,0.00038356,120]
[400106373,1767122895917,-714.757392,0.00038356,120]
[400106374,1767122895944,-714.757392,0.00038356,120]
[400106375,1767122895970,-714.757392,0.00038356,120]
[400106376,1767122895996,-714.757392,0.00038356,120]
[400106377,1767122896023,-714.757392,0.00038356,120]
[400106378,1767122896050,-714.757392,0.00038356,120]
[400106379,1767122896077,-714.757392,0.00038356,120]
[400106380,1767122896103,-714.757396,0.00038356,120]
[400106381,1767122896129,-151.0,0.00038356,120]
[400106382,1767122896154,-152.159655,0.00038356,120]
[400106383,1767122896180,-2350.779412,0.00038356,120]
[400106384,1767122896207,-2350.779412,0.00038356,120]
[400106385,1767122896234,-2350.779412,0.00038356,120]
[400106386,1767122896260,-2350.779412,0.00038356,120]
[400106387,1767122896286,-2350.779412,0.00038356,120]
[400106388,1767122896314,-2350.779412,0.00038356,120]
[400106389,1767122896339,-2350.779412,0.00038356,120]
[400106390,1767122896365,-2350.779412,0.00038356,120]
[400106391,1767122896392,-2350.779412,0.00038356,120]
[400106392,1767122896420,-2350.779412,0.00038356,120]
[400106393,1767122896447,-2350.779412,0.00038356,120]
[400106394,1767122896475,-2350.779412,0.00038356,120]
[400106395,1767122896501,-2350.779412,0.00038356,120]
[400106396,1767122896529,-2350.779412,0.00038356,120]
[400106397,1767122896557,-2350.779412,0.00038356,120]
[400106398,1767122896585,-2350.779412,0.00038356,120]
[400106399,1767122896612,-2350.779412,0.00038356,120]
[400106400,1767122896640,-2350.779412,0.00038356,120]
[400106401,1767122896667,-2350.779412,0.00038356,120]
[400106402,1767122896694,-2350.779404,0.00038356,120]
[400106403,1767122896722,-151.0,0.00038356,120]
[400106404,1767122896749,-151.0,0.00038356,120]
[400106405,1767122896775,-151.0,0.00038356,120]
[400106406,1767122896801,-151.0,0.00038356,120]
[400106407,1767122896828,-151.0,0.00038356,120]
[400106408,1767122896854,-248.854125,0.00038356,120]
[400106409,1767122896884,-204.311261,0.00038356,120]
[400106410,1767122896913,-204.311261,0.00038356,120]
[400106411,1767122896941,-204.311261,0.00038356,120]
[400106412,1767122896967,-204.311261,0.00038356,120]
[400106413,1767122896993,-204.311261,0.00038356,120]
[400106414,1767122897020,-204.311261,0.00038356,120]
[400106415,1767122897047,-204.311261,0.00038356,120]
[400106416,1767122897073,-204.311261,0.00038356,120]
[400106417,1767122897101,-204.311261,0.00038356,120]
[400106418,1767122897308,-204.311261,0.00038356,120]
[400106419,1767122897338,-204.311261,0.00038356,120]
[400106420,1767122897366,-204.311261,0.00038356,120]
[400106421,1767122897393,-204.311261,0.00038356,120]
[400106422,1767122897422,-204.311261,0.00038356,120]
[400106423,1767122897452,-204.311261,0.00038356,120]
[400106424,1767122897480,-204.311261,0.00038356,120]
[400106425,1767122897523,-204.311261,0.00038356,120]
[400106426,1767122897561,-204.311261,0.00038356,120]
[400106427,1767122897591,-204.311261,0.00038356,120]
[400106428,1767122897622,-204.311259,0.00038356,120]
[400106429,1767122897651,-151.0,0.00038356,120]
[400106430,1767122897679,-155.067514,0.00038356,120]
[400106431,1767122897708,-172.02491,0.00038488,30]
[400106432,1767122897739,-1291.74,0.00038678,35]
[400106433,1767122897767,-172.02491,0.00038688,30]
[400106434,1767122897797,-406.04043184,0.000389,31]
[400106435,1767122897826,-316.27353764,0.000389,120]
[400106436,1767122897854,-206.0,0.0003891,30]
[400106437,1767122897888,-150.0,0.00039,120]
[400106438,1767122897916,-187.06498272,0.00039,120]
[400106439,1767122897950,-162.821082,0.00039025,30]
[400106440,1767122897981,-172.02491,0.00039088,30]
[400106441,1767122898011,-172.02491,0.00039288,30]
[400106442,1767122898041,-172.02491,0.00039488,30]
[400106443,1767122898071,-172.02491,0.00039688,30]
[400106444,1767122898101,-2000.0,0.00039876,31]
[400106445,1767122898132,-172.02491,0.00039888,30]
[400106446,1767122898162,-288.00240076,0.000399,120]
[400106447,1767122898192,-153.0,0.0004,120]
[400106448,1767122898220,-152.0,0.0004,120]
[400106449,1767122898248,-178.79076431,0.0004,120]
[400106450,1767122898277,-295.87598002,0.0004,120]
[400106451,1767122898307,-230.98728896,0.0004,30]
[400106452,1767122898336,-168.036786,0.0004,30]
[400106453,1767122898366,-165.47182596,0.0004,120]
[400106454,1767122898397,-650.75708078,0.0004,120]
[400106455,1767122898432,-1000.0,0.0004,60]
[400106456,1767122898462,-2564.64,0.0004,60]
[400106457,1767122898492,-750.0,0.0004,120]
[400106458,1767122898521,-400000.00683123,0.0004,30]
[400106459,1767122898551,-1129.76340308,0.0004,120]
[400106460,1767122898579,-654.21946449,0.0004,120]
[400106461,1767122898608,-150.0,0.0004,120]
[400106462,1767122898636,-253.0,0.0004,30]
[400106463,1767122898665,-172.02491,0.00040088,30]
[400106464,1767122898695,-2924.414,0.00040155,57]
[400106465,1767122898725,-267.878,0.00040155,57]
[400106466,1767122898754,-151.27287584,0.00040189,30]
[400106467,1767122898781,-151.07185018,0.00040189,30]
[400106468,1767122898811,-172.02491,0.00040288,30]
[400106469,1767122898840,-1027.86,0.000403,30]
[400106470,1767122898873,-155.85,0.00040313,60]
[400106471,1767122898904,-211.32,0.00040375,120]
[400106472,1767122898935,-1684.1608486,0.0004042,120]
[400106473,1767122898965,-172.02491,0.00040488,30]
[400106474,1767122898993,-208.1537938,0.000405,120]
[400106475,1767122899023,-153.0,0.000406,120]
[400106476,1767122899053,-152.0,0.000406,120]
[400106477,1767122899083,-172.02491,0.00040688,30]
[400106478,1767122899116,-1027.86,0.000407,30]
[400106479,1767122899145,-172.02491,0.00040888,30]
[400106480,1767122899174,-206.0,0.0004093,30]
[400106481,1767122899203,-635.0,0.00041,90]
[400106482,1767122899231,-150.0,0.00041,120]
[400106483,1767122899259,-253.0,0.00041,34]
[400106484,1767122899293,-172.02491,0.00041088,30]
[400106485,1767122899324,-500.0,0.00041095,120]
[400106486,1767122899355,-500.0,0.00041095,120]
[400106487,1767122899383,-622.20775471,0.00041095,120]
[400106488,1767122899412,-500.0,0.00041095,120]
[400106489,1767122899440,-200.11823625,0.00041095,120]
[400106490,1767122899468,-500.0,0.00041095,120]
[400106491,1767122899496,-500.0,0.00041095,120]
[400106492,1767122899526,-500.0,0.00041095,120]
[400106493,1767122899559,-500.0,0.00041095,120]
[400106494,1767122899587,-500.0,0.00041095,120]
[400106495,1767122899617,-500.0,0.00041095,120]
[400106496,1767122899646,-500.0,0.00041095,120]
[400106497,1767122899674,-294.85467949,0.00041095,120]
[400106498,1767122899702,-500.0,0.00041095,120]
[400106499,1767122899731,-500.0,0.00041095,120]
[400106500,1767122899760,-500.0,0.00041095,120]
[400106501,1767122899788,-500.0,0.00041095,120]
[400106502,1767122899819,-403.89899644,0.00041095,120]
[400106503,1767122899848,-500.0,0.00041095,120]
[400106504,1767122899881,-500.0,0.00041095,120]
[400106505,1767122899911,-169.93747039,0.00041095,120]
[400106506,1767122899941,-500.0,0.00041095,120]
[400106507,1767122899969,-500.0,0.00041095,120]
[400106508,1767122899997,-500.0,0.00041095,120]
[400106509,1767122900027,-486.17002383,0.00041095,120]
[400106510,1767122900056,-500.0,0.00041095,30]
[400106511,1767122900085,-515.17501497,0.00041095,30]
[400106512,1767122900113,-500.0,0.00041095,30]
[400106513,1767122900148,-534.29629893,0.00041095,30]
[400106514,1767122900177,-500.0,0.00041095,30]
[400106515,1767122900206,-507.31375585,0.00041095,30]
[400106516,1767122900234,-1251.44,0.00041095,120]
[400106517,1767122900264,-1251.44,0.00041095,120]
[400106518,1767122900304,-1251.44,0.00041095,120]
[400106519,1767122900338,-1251.44,0.00041095,120]
[400106520,1767122900369,-1251.44,0.00041095,120]
[400106521,1767122900400,-1251.44,0.00041095,120]
[400106522,1767122900430,-1251.44,0.00041095,120]
[400106523,1767122900459,-1251.44,0.00041095,120]
[400106524,1767122900487,-1251.44,0.00041095,120]
[400106525,1767122900516,-1251.44,0.00041095,120]
[400106526,1767122900547,-1251.44,0.00041095,120]
[400106527,1767122900580,-1251.44,0.00041095,120]
[400106528,1767122900610,-1251.44,0.00041095,120]
[400106529,1767122900650,-1251.44,0.00041095,120]
[400106530,1767122900690,-1251.44,0.00041095,120]
[400106531,1767122900727,-1251.44,0.00041095,120]
[400106532,1767122900760,-1251.44,0.00041095,120]
[400106533,1767122900795,-1251.44,0.00041095,120]
[400106534,1767122900829,-1251.44,0.00041095,120]
[400106535,1767122900863,-1251.44,0.00041095,120]
[400106536,1767122900897,-1251.44,0.00041095,120]
[400106537,1767122900933,-1251.44,0.00041095,120]
[400106538,1767122900969,-1251.44,0.00041095,120]
[400106539,1767122901003,-1251.54321556,0.00041095,120]
[400106540,1767122901032,-500.0,0.00041095,30]
[400106541,1767122901062,-500.0,0.00041095,30]
[400106542,1767122901096,-500.0,0.00041095,30]
[400106543,1767122901129,-500.0,0.00041095,30]
[400106544,1767122901162,-500.0,0.00041095,30]
[400106545,1767122901197,-505.51566203,0.00041095,30]
[400106546,1767122901230,-500.0,0.00041095,120]
[400106547,1767122901263,-500.0,0.00041095,120]
[400106548,1767122901299,-500.0,0.00041095,120]
[400106549,1767122901333,-500.0,0.00041095,120]
[400106550,1767122901367,-500.0,0.00041095,120]
[400106551,1767122901402,-500.0,0.00041095,120]
[400106552,1767122901438,-500.0,0.00041095,120]
[400106553,1767122901474,-500.0,0.00041095,120]
[400106554,1767122901510,-275.04316347,0.00041095,120]
[400106555,1767122901549,-317.18809195,0.00041095,120]
[400106556,1767122901581,-229.76060722,0.00041095,120]
[400106557,1767122901617,-287.37334539,0.00041095,120]
[400106558,1767122901652,-267.19266482,0.00041095,120]
[400106559,1767122901694,-335.66959277,0.00041095,120]
[400106560,1767122901734,-313.19204948,0.00041095,120]
[400106561,1767122901773,-399.82226554,0.00041095,120]
[400106562,1767122901810,-308.13297796,0.00041095,120]
[400106563,1767122901846,-464.46186001,0.00041095,120]
[400106564,1767122901880,-500.0,0.00041095,120]
[400106565,1767122901914,-517.86114688,0.00041095,120]
[400106566,1767122901952,-500.0,0.00041095,120]
[400106567,1767122901991,-500.0,0.00041095,120]
[400106568,1767122902026,-500.0,0.00041095,120]
[400106569,1767122902062,-527.0277825,0.00041095,120]
[400106570,1767122902096,-500.0,0.00041095,120]
[400106571,1767122902132,-308.10024781,0.00041095,120]
[400106572,1767122902176,-500.0,0.00041095,120]
[400106573,1767122902219,-200.0,0.00041095,120]
[400106574,1767122902255,-500.0,0.00041095,30]
[400106575,1767122902289,-500.0,0.00041095,30]
[400106576,1767122902324,-313.54958841,0.00041095,120]
[400106577,1767122902361,-500.0,0.00041095,120]
[400106578,1767122902399,-303.19450089,0.00041095,120]
[400106579,1767122902436,-500.0,0.00041095,120]
[400106580,1767122902475,-248.43479054,0.00041095,120]
[400106581,1767122902511,-500.0,0.00041095,120]
[400106582,1767122902548,-500.0,0.00041095,120]
[400106583,1767122902584,-500.0,0.00041095,120]
[400106584,1767122902620,-500.0,0.00041095,120]
[400106585,1767122902654,-500.0,0.00041095,120]
[400106586,1767122902689,-500.0,0.00041095,120]
[400106587,1767122902725,-500.0,0.00041095,120]
[400106588,1767122902761,-339.21069038,0.00041095,120]
[400106589,1767122902796,-1312.29,0.00041095,120]
[400106590,1767122902833,-1312.29,0.00041095,120]
[400106591,1767122902871,-1312.29,0.00041095,120]
[400106592,1767122902907,-1312.29,0.00041095,120]
[400106593,1767122902941,-1312.29,0.00041095,120]
[400106594,1767122902977,-1312.29,0.00041095,120]
[400106595,1767122903007,-1312.29,0.00041095,120]
[400106596,1767122903039,-1312.29,0.00041095,120]
[400106597,1767122903071,-1312.29,0.00041095,120]
[400106598,1767122903101,-1312.29,0.00041095,120]
[400106599,1767122903451,-1312.29,0.00041095,120]
[400106600,1767122903575,-1312.29,0.00041095,120]
[400106601,1767122903608,-1312.29,0.00041095,120]
[400106603,1767122903639,-1312.29,0.00041095,120]
[400106604,1767122903668,-1312.29,0.00041095,120]
[400106605,1767122903698,-1312.29,0.00041095,120]
[400106606,1767122903729,-1312.29,0.00041095,120]
[400106607,1767122903758,-1312.29,0.00041095,120]
[400106608,1767122903787,-1312.29,0.00041095,120]
[400106609,1767122903817,-1312.29,0.00041095,120]
[400106610,1767122903848,-1312.29,0.00041095,120]
[400106611,1767122903881,-1312.29,0.00041095,120]
[400106612,1767122903911,-1312.29,0.00041095,120]
[400106613,1767122903941,-1312.44124068,0.00041095,120]
[400106614,1767122903970,-500.0,0.00041095,120]
[400106615,1767122903999,-228.35501316,0.00041095,120]
[400106616,1767122904030,-562.03013943,0.00041095,120]
[400106617,1767122904062,-442.54403784,0.00041095,120]
[400106618,1767122904091,-211.46063835,0.00041095,120]
[400106619,1767122904123,-424.89889507,0.00041095,120]
[400106620,1767122904152,-500.0,0.00041095,120]
[400106621,1767122904182,-500.0,0.00041095,120]
[400106622,1767122904213,-500.0,0.00041095,120]
[400106623,1767122904242,-500.0,0.00041095,120]
[400106624,1767122904272,-500.0,0.00041095,120]
[400106625,1767122904307,-500.0,0.00041095,30]
[400106626,1767122904338,-500.0,0.00041095,120]
[400106627,1767122904370,-500.0,0.00041095,120]
[400106628,1767122904402,-500.0,0.00041095,30]
[400106629,1767122904434,-500.0,0.00041095,120]
[400106630,1767122904464,-500.0,0.00041095,120]
[400106631,1767122904494,-404.49660688,0.00041095,120]
[400106632,1767122904524,-259.10494326,0.00041095,120]